Cogmind - Beta 11 @@@ ROGUE MODE // 2022.04.14 @ 16:43:51 Player: DaddyWalrus Result: Destroyed by G-67 Veteran with Field Laser Performance ------------- Evolutions (6) 3000 Regions Visited (13) 2600 Robots Destroyed (189) 945 Value Destroyed (5854) 5854 Prototype IDs (24) 480 Alien Tech Used (0) 0 Bonus (2026) 2026 TOTAL SCORE: 14905 Bonus ------- High Alert Combat Kills 326 Entered Garrisons 200 Entered DSFs 500 Met Warlord at Base 500 MAIN.C Attacked Warlord 500 Cogmind --------- Core Integrity 0/1150 Matter 795/800 Energy 99/100 System Corruption 5% Temperature Cool (2) Movement Hovering (70) Location -4/Factory Parts ------- > --- POWER (2) -------- (None) > --- PROPULSION (5) --- Improved Gyrokinetic Inverter > --- UTILITY (9) ------ Experimental Matter Compressor Improved Melee Analysis Suite Advanced Melee Analysis Suite Advanced Melee Analysis Suite Improved Light Armor Plating Graphene Brace System Shield > --- WEAPON (3) ------- (None) > --- INVENTORY (5) ---- Vortex Chain Reactor Microactuators Experimental Phase Shifter Improved Component Analysis Suite Peak State ------------ > --- POWER ------------ Neutrino Core > --- PROPULSION ------- Gyrokinetic Inverter Gyrokinetic Inverter > --- UTILITY ---------- Small Storage Unit Wardrone Bay > --- WEAPON ----------- Mini Grenade Launcher > --- INVENTORY -------- Improved Coolant Injector Large Storage Unit Improved Weapon Cycler Improved Weapon Shielding Improved Medium Armor Plating Improved Thermal Shield Cooled Particle Cannon KE Penetrator [Rating: 128] Favorites ----------- Power Improved Ion Engine Engine Improved Ion Engine Power Core Light Nuclear Core Propulsion Light Treads Treads Light Treads Leg Aluminum Leg Wheel Wheel Hover Unit Gyrokinetic Inverter Flight Unit Experimental Cesium-ion Thruster Utility Improved Melee Analysis Suite Device Cooling System Storage Large Storage Unit Processor Improved Melee Analysis Suite Hackware Hacking Suite Protection Improved Medium Armor Plating Weapon Katana Energy Gun Heavy EM Shotgun Energy Cannon Cooled Particle Cannon Ballistic Gun Assault Rifle Launcher Mini Grenade Launcher Impact Weapon Heavy Mace Slashing Weapon Katana Piercing Weapon Makeshift Spear Build | -11 -10 -9 -8 -7 -6 -6 -6 -5 -5 -5 -5 -4 -4 ------- Run | Scr Mat Mat Mat Fac Fac DSF Gar Fac Upp Upp War Pro Fac Slots Evolved 12 | . . 2 2 2 2 . . 2 . . . . 2 Power 1 | . . . . . . . . . . . . . 1 Propulsion 3 | . . 1 1 . . . . . . . . . 1 Utility 7 | . . 1 1 1 2 . . 2 . . . . . Weapon 1 | . . . . 1 . . . . . . . . . Parts Attached 214 | 7 11 25 33 51 1 4 8 15 4 . 19 12 24 Power 20 | 1 2 3 3 4 . 1 . 1 . . 1 . 4 Engine 8 | 1 2 3 . . . . . . . . . . 2 Core 12 | . . . 3 4 . 1 . 1 . . 1 . 2 Reactor . | . . . . . . . . . . . . . . Propulsion 66 | 2 5 8 13 17 . 1 5 3 . . 2 2 8 Treads 21 | 1 2 7 11 . . . . . . . . . . Leg 14 | . . . . 13 . . . 1 . . . . . Wheel 9 | 1 3 1 2 . . . . . . . . . 2 Hover 7 | . . . . . . . . 2 . . 2 . 3 Flight 15 | . . . . 4 . 1 5 . . . . 2 3 Utility 69 | 2 2 4 9 19 1 2 1 4 3 . 12 5 5 Device 25 | 1 1 1 3 4 . . 1 3 1 . 5 3 2 Storage 9 | 1 1 1 . 2 . . . . . . 3 1 . Processor 18 | . . 2 4 5 . . . 1 2 . 3 . 1 Hackware 4 | . . . . 2 1 . . . . . . . 1 Protection 13 | . . . 2 6 . 2 . . . . 1 1 1 Artifact . | . . . . . . . . . . . . . . Weapon 59 | 2 2 10 8 11 . . 2 7 1 . 4 5 7 Energy Gun 21 | . 2 10 5 . . . . . . . 1 3 . Energy Cannon 8 | . . . . . . . . 7 . . . 1 . Ballistic Gun 3 | 2 . . . . . . . . . . . . 1 Ballistic Cannon . | . . . . . . . . . . . . . . Launcher 9 | . . . 1 4 . . 1 . 1 . . 1 1 Special Weapon . | . . . . . . . . . . . . . . Impact Weapon 3 | . . . 2 1 . . . . . . . . . Slashing Weapon 12 | . . . . 6 . . 1 . . . . . 5 Piercing Weapon 3 | . . . . . . . . . . . 3 . . Special Melee Weapon . | . . . . . . . . . . . . . . Unidentified Prototypes 12 | . . 3 . . . . . 2 . . 5 1 1 Corrupted Parts 2 | . . . 2 . . . . . . . . . . System Corruption 4 | . . . 4 . . . . . . . . . . Parts Lost 72 | . . 3 21 8 . 5 7 . . 2 . 11 15 Power 7 | . . . 1 1 . 1 . . . . . 1 3 Propulsion 30 | . . . 9 4 . 2 4 . . 2 . 3 6 Utility 17 | . . . 6 2 . 2 2 . . . . 3 2 Weapon 18 | . . 3 5 1 . . 1 . . . . 4 4 Highest Loss Streak 13 | . . 2 7 5 . 5 4 . . 2 . 5 13 To Critical Strikes 1 | . . . 1 . . . . . . . . . . Average Slot Usage (%) 86 | . 99 99 86 97 86 71 58 59 70 75 68 73 61 Engine 3 | . 14 11 3 . . . . . . . . . 1 Core 3 | . . . 3 7 6 4 . 4 5 5 5 2 . Treads 9 | . 10 26 29 . . . . . . . . . . Leg 7 | . . . . 26 . . . . . . . . . Wheel 2 | . 17 6 . . . . . . . . . . 1 Hover 2 | . . . . . . . . 8 11 11 17 8 1 Flight 3 | . . . . 3 26 23 22 11 11 10 . 5 10 Device 6 | . 13 11 5 . 6 3 3 7 5 5 5 10 7 Storage 8 | . 14 11 9 7 6 6 6 5 5 5 6 11 9 Processor 14 | . . 11 16 19 6 6 6 10 17 23 14 17 15 Hackware 1 | . . . . 1 20 18 9 5 5 5 . . 4 Protection 2 | . . . . 7 . 3 . . . . 2 1 . Energy Gun 6 | . 12 21 10 . . . . . . . 1 4 . Ballistic Gun 1 | . 15 . . . . . . . . . . . . Impact Weapon 1 | . . . 7 2 6 2 . . . . . . . Slashing Weapon 5 | . . . . 18 6 . 5 . . . . . 4 Naked Turns . | . . . . . . . . . . . . . . Heaviest Build 66 | 13 32 37 42 66 17 22 8 29 22 21 48 49 34 Greatest Support 86 | 20 40 60 86 80 23 23 17 22 22 22 48 48 31 Greatest Overweight (x) 9 | . 1 1 9 1 . . 1 1 . . 1 3 3 Average Overweight (x) . | . . . . . . . . . . . . . . Largest Inventory Capacity 20 | 8 15 15 15 20 8 8 8 8 8 8 15 15 15 Average Capacity 13 | 7 10 15 15 15 8 8 8 8 8 8 11 15 13 Most Carried 20 | 6 15 15 15 20 8 8 3 8 8 8 15 15 15 Average Carried 12 | 5 9 14 11 14 7 5 1 7 7 8 11 12 12 Final Capacity 15 | 8 15 15 15 8 8 8 8 8 8 8 15 15 5 Final Carried 15 | 6 15 15 15 8 8 4 . 8 8 8 15 11 5 Class Distribution -------------------- 70% | Mutant 15% | Scavenger-Mutant 4% | Derelict-Mutant 3% | Sprinter 3% | Hacker-Sprinter Dominant Class ---------------- Mutant | -10/Materials Mutant | -9/Materials Mutant | -8/Materials Mutant | -7/Factory Mutant | -6/Factory Mutant | -6/DSF Scavenger-Sprinter | -6/Garrison Mutant | -5/Factory Mutant | -5/Upper Caves Mutant | -5/Upper Caves Mutant | -5/Warlord Mutant | -4/Proximity Caves Mutant | -4/Factory Resources | -11 -10 -9 -8 -7 -6 -6 -6 -5 -5 -5 -5 -4 -4 ----------- Run | Scr Mat Mat Mat Fac Fac DSF Gar Fac Upp Upp War Pro Fac Matter Collected 3145 | 261 344 250 270 623 . . 64 266 40 . 715 100 212 Remotely . | . . . . . . . . . . . . . . Salvage Created 6932 | 85 509 1172 1603 2385 . . 237 287 . 42 . 176 436 Parts 413 | 10 32 90 106 95 . . 14 13 . 4 . 16 33 Haulers Intercepted 2 | . . 2 . . . . . . . . . . . Recyclers Shooed 9 | . 1 1 2 4 . . . 1 . . . . . Parts Field Recycled . | . . . . . . . . . . . . . . Retrieved Matter . | . . . . . . . . . . . . . . Parts Self-Destructed 51 | . . . . . . . . . . 2 39 10 . Prevented 6 | . . . . . . . . . . . 6 . . Kills | -11 -10 -9 -8 -7 -6 -6 -6 -5 -5 -5 -5 -4 -4 ------- Run | Scr Mat Mat Mat Fac Fac DSF Gar Fac Upp Upp War Pro Fac Combat Hostiles Destroyed 136 | . 11 25 29 27 . . 12 4 . 5 . 7 16 Melee 37 | . . . 3 24 . . 3 . . . . . 7 Guns 54 | . 9 24 19 . . . . . . . . 2 . Cannons 5 | . . . . . . . . 4 . . . 1 . AOE 37 | . 2 1 4 3 . . 9 . . 5 . 4 9 Classes Destroyed 18 | 1 3 4 4 4 . . . . . . . 2 . Worker 11 | . . . 3 4 . . . 1 . . . . 3 Builder 8 | . . 1 3 1 . . . . . . . . 3 Tunneler 6 | 5 . . . 1 . . . . . . . . . Hauler 2 | . . 2 . . . . . . . . . . . Recycler 12 | . . . . 12 . . . . . . . . . Operator 6 | . 1 3 . 2 . . . . . . . . . Watcher 8 | . 1 1 2 4 . . . . . . . . . Swarmer 48 | . . 8 6 1 . . 10 . . 5 . 4 14 Grunt 46 | . 11 9 11 12 . . 2 1 . . . . . Brawler 6 | . . . 2 4 . . . . . . . . . Duelist 1 | . . . . 1 . . . . . . . . . Sentry 21 | . . 8 7 3 . . . 3 . . . . . Demolisher 1 | . . . . . . . . . . . . 1 . Specialist 2 | . . . 2 . . . . . . . . . . Hunter 1 | . . . . 1 . . . . . . . . . Programmer 8 | . . . . 5 . . . . . . . 1 2 Heavy 1 | . . . 1 . . . . . . . . . . Behemoth 1 | . . . . . . . . . . . . 1 . Best Kill Streak 12 | 5 2 9 7 4 . . 7 2 . 5 . 5 12 Combat Bots Only 9 | . 2 8 7 3 . . 7 2 . 5 . 5 9 Max Kills in Single Turn 12 | 1 2 2 2 2 . . 2 1 . 4 . 3 12 Gunslinging 1 | . . 1 . . . . . . . . . . . Exploded 9 | . 2 1 1 2 . . 2 . . 4 . 3 9 Melee 1 | . . . 1 1 . . 1 . . . . . 1 Uniques/NPCs Destroyed . | . . . . . . . . . . . . . . Combat | -11 -10 -9 -8 -7 -6 -6 -6 -5 -5 -5 -5 -4 -4 -------- Run | Scr Mat Mat Mat Fac Fac DSF Gar Fac Upp Upp War Pro Fac Damage Taken 12365 | . 370 957 2759 2039 . 574 687 265 14 176 50 1702 2772 Core 3287 | . 57 146 503 238 . 200 343 134 . 72 . 435 1159 Absorbed by Shields 231 | . . . . . . 110 121 . . . . . . Core Remaining (%) 55 | 100 77 63 8 66 . . 36 . . . . 35 . Volleys Fired 256 | 10 43 53 70 2 . . 10 28 . 3 2 28 7 Largest 3 | 2 2 2 2 2 . . 1 1 . 1 1 3 1 Hottest 135 | 40 80 100 110 60 . . 30 30 . 30 40 135 40 Shots Fired 436 | 20 86 107 128 4 . . 10 28 . 3 2 41 7 Gun 377 | 20 86 107 127 . . . . . . . 2 29 6 Cannon 38 | . . . . . . . . 28 . . . 10 . Launcher 21 | . . . 1 4 . . 10 . . 3 . 2 1 Special . | . . . . . . . . . . . . . . Kinetic 80 | 20 55 . . . . . . . . . . . 5 Thermal 38 | . . . . . . . . 28 . . . 10 . Explosive 21 | . . . 1 4 . . 10 . . 3 . 2 1 Electromagnetic 270 | . 31 107 127 . . . . . . . . 5 . Entropic 27 | . . . . . . . . . . . 2 24 1 Robot Hit Streak 22 | 9 10 9 22 13 . . . 6 . . . 12 1 Robot Miss Streak 5 | 1 4 5 2 1 . . 2 2 . . . 3 4 Penetration Max . | . . . . . . . . . . . . . . Secondary Targets 4 | . 1 2 1 . . . . . . . . . . Max Gunslinging Chain 1 | . 1 1 1 . . . . . . . . . . Shots Hit Robots 457 | 16 47 72 124 122 . . 5 20 . . . 28 23 Core Hits 273 | 5 27 45 70 52 . . 23 10 . 8 . 15 18 Critical Kills 4 | . . . 2 2 . . . . . . . . . Critical Parts Destroyed 8 | 1 1 . 3 2 . . . . . . . 1 . Critical Strikes 21 | 1 1 4 6 7 . . . . . . . 1 1 Destroy 2 | 1 1 . . . . . . . . . . . . Corrupt 5 | . . 4 1 . . . . . . . . . . Smash 9 | . . . 5 4 . . . . . . . . . Sever 4 | . . . . 3 . . . . . . . . 1 Detonate 1 | . . . . . . . . . . . . 1 . Melee Attacks 212 | . . . 15 155 1 . 8 . . . 3 . 30 Impact 51 | . . . 15 35 1 . . . . . . . . Slashing 158 | . . . . 120 . . 8 . . . . . 30 Piercing 3 | . . . . . . . . . . . 3 . . Sneak Attacks 27 | . . . 2 23 . . . . . . . . 2 Combat Hostiles . | . . . . . . . . . . . . . . Follow-up Attacks 26 | . . . 1 24 . . . . . . . . 1 Damage Inflicted 16456 | 202 783 1315 2888 5749 . . 978 567 . 368 . 1431 2175 Guns 4813 | 202 680 1135 1933 . . . . . . . . 842 21 Cannons 815 | . . . . . . . . 567 . . . 248 . Explosions 3666 | . 103 180 466 425 . . 820 . . 368 . 341 963 Melee 7155 | . . . 482 5324 . . 158 . . . . . 1191 Ramming 7 | . . . 7 . . . . . . . . . . Kinetic 644 | 202 421 . . . . . . . . . . . 21 Thermal 2184 | . 103 180 426 . . . . 567 . . . 308 600 Explosive 2297 | . . . 40 425 . . 820 . . 368 . 281 363 Electromagnetic 3404 | . 259 1135 1933 . . . . . . . . 77 . Impact 1666 | . . . 482 1184 . . . . . . . . . Slashing 5489 | . . . . 4140 . . 158 . . . . . 1191 Piercing . | . . . . . . . . . . . . . . Entropic 765 | . . . . . . . . . . . . 765 . Highest Corruption 17 | . 3 3 10 17 . 1 1 . . . . 1 5 Average Corruption 6 | . 2 3 9 10 . 1 1 . . . . 1 4 Corruption Purged . | . . . . . . . . . . . . . . Corruption Blocked . | . . . . . . . . . . . . . . Effects 86 | . . 15 20 43 . . . . . . . 4 4 Message Errors 30 | . . 3 11 13 . . . . . . . 3 . Matter Fused 18 | . . 1 3 13 . . . . . . . . 1 Heat Flow Errors 7 | . . . 1 5 . . . . . . . . 1 Energy Discharges 14 | . . 3 3 6 . . . . . . . . 2 Parts Rejected 2 | . . 2 . . . . . . . . . . . Data Loss (minor) 9 | . . 4 1 3 . . . . . . . 1 . Data Loss (major) 3 | . . 1 1 1 . . . . . . . . . Misfires 1 | . . 1 . . . . . . . . . . . Alerts 2 | . . . . 2 . . . . . . . . . Overload Shots . | . . . . . . . . . . . . . . Overflow Damage 1358 | . . . 178 716 . . 24 . . 21 . . 419 Projectiles . | . . . . . . . . . . . . . . Explosions 266 | . . . 20 . . . 19 . . 21 . . 206 Melee 1092 | . . . 158 716 . . 5 . . . . . 213 Knockbacks 3 | . . . 1 2 . . . . . . . . . Impact 3 | . . . 1 2 . . . . . . . . . Kinetic . | . . . . . . . . . . . . . . Secondary . | . . . . . . . . . . . . . . Self-Inflicted Damage 578 | . . 31 261 . . . 29 . . 26 . . 231 Shots 15 | . . 1 7 . . . 1 . . 1 . . 5 Rammed 3 | . . . 3 . . . . . . . . . . Targets Rammed 4 | . . . 4 . . . . . . . . . . Kicked . | . . . . . . . . . . . . . . Crushed 1 | . . . 1 . . . . . . . . . . Highest Temperature 181 | . 19 19 142 181 . . . 22 . . . 175 144 Average Temperature 52 | . 8 7 39 68 . . . 4 . . . 92 74 Received Heat Transfer 2686 | . 207 345 1026 630 . . 69 135 9 18 9 145 93 Siege Activations . | . . . . . . . . . . . . . . Robots Corrupted 3 | . . . 3 . . . . . . . . . . Combat Hostiles 3 | . . . 3 . . . . . . . . . . Parts Fried 19 | . 1 1 12 5 . . . . . . . . . Impact Corruptions 13 | . . . 4 9 . . . . . . . . . Robots Melted . | . . . . . . . . . . . . . . Combat Hostiles . | . . . . . . . . . . . . . . Parts Melted 1 | . . . . . . . . 1 . . . . . Heat Transferred 2198 | . 100 300 400 . . . . 777 . . . 321 300 Parts Sabotaged . | . . . . . . . . . . . . . . Parts Stolen . | . . . . . . . . . . . . . . Parts Stripped . | . . . . . . . . . . . . . . Power Chain Reactions 12 | . 1 5 6 . . . . . . . . . . Missiles Intercepted . | . . . . . . . . . . . . . . Alert | -11 -10 -9 -8 -7 -6 -6 -6 -5 -5 -5 -5 -4 -4 ------- Run | Scr Mat Mat Mat Fac Fac DSF Gar Fac Upp Upp War Pro Fac Peak Influence 723 | 25 301 480 539 601 272 190 536 462 . . . . 723 Initial 281 | . 16 98 138 173 271 190 105 281 . . . . 103 Average 292 | 8 132 239 366 328 271 177 285 349 . . . . 310 Maximum Alert Level 3 | . 1 2 2 2 1 . 2 2 . . . . 3 Low Security (%) 32 | 100 82 52 12 18 . 100 29 . . . . . 48 Level 1 46 | . 17 34 55 58 100 . 55 72 . . . . 19 Level 2 20 | . . 12 31 22 . . 15 27 . . . . 28 Level 3 . | . . . . . . . . . . . . . 3 Level 4 . | . . . . . . . . . . . . . . Level 5 . | . . . . . . . . . . . . . . High Security . | . . . . . . . . . . . . . . Max Security . | . . . . . . . . . . . . . . Squads Dispatched 26 | . 4 4 6 6 . 1 . 2 . 1 . . 2 Investigation 4 | . 2 1 1 . . . . . . . . . . Extermination 5 | . . . . 4 . . . 1 . . . . . Reinforcement 13 | . 2 3 2 2 . 1 . 1 . . . . 2 Assault 2 | . . . 1 . . . . . . 1 . . . Garrison 2 | . . . 2 . . . . . . . . . . Intercept . | . . . . . . . . . . . . . . Searches Triggered . | . . . . . . . . . . . . . . Construction Impeded 1 | . . . . . . . . . . . . . 1 Haulers Reinforced 1 | . . . . . . . . 1 . . . . . Active Scanning Responses . | . . . . . . . . . . . . . . Cargo Convoy Interrupts . | . . . . . . . . . . . . . . Stealth | -11 -10 -9 -8 -7 -6 -6 -6 -5 -5 -5 -5 -4 -4 --------- Run | Scr Mat Mat Mat Fac Fac DSF Gar Fac Upp Upp War Pro Fac Distress Signals 19 | . . 3 1 . . . . 2 . . . 12 1 Communications Jammed . | . . . . . . . . . . . . . . Distress Signals . | . . . . . . . . . . . . . . Times Spotted 266 | . 20 37 39 45 . 5 18 15 4 13 16 14 40 Peak Tracking Total 16 | . 4 6 7 5 . 5 11 5 3 16 6 6 16 Tactical Retreats 24 | . 1 3 1 3 . . 2 2 3 2 . 2 5 Traps | -11 -10 -9 -8 -7 -6 -6 -6 -5 -5 -5 -5 -4 -4 ------- Run | Scr Mat Mat Mat Fac Fac DSF Gar Fac Upp Upp War Pro Fac Traps Triggered 21 | . 4 2 . 4 . 4 3 1 . . . 1 2 Indirectly . | . . . . . . . . . . . . . . Trap Hack Attempts . | . . . . . . . . . . . . . . Triggered . | . . . . . . . . . . . . . . Disarmed . | . . . . . . . . . . . . . . Reprogrammed . | . . . . . . . . . . . . . . Reused . | . . . . . . . . . . . . . . Traps Extracted . | . . . . . . . . . . . . . . Installed . | . . . . . . . . . . . . . . Triggered 11 | . . . . . . . . . 3 2 6 . . Machines | -11 -10 -9 -8 -7 -6 -6 -6 -5 -5 -5 -5 -4 -4 ---------- Run | Scr Mat Mat Mat Fac Fac DSF Gar Fac Upp Upp War Pro Fac Machines Disabled 15 | . . 4 2 . . . . . . . 1 . 8 Max in Single Turn 8 | . . 1 2 . . . . . . . 1 . 8 Garrison Access 2 | . . . 1 1 . . . . . . . . . Machines Sabotaged . | . . . . . . . . . . . . . . Garrisons Compromised . | . . . . . . . . . . . . . . Overloaded Fab Kills . | . . . . . . . . . . . . . . Hacking | -11 -10 -9 -8 -7 -6 -6 -6 -5 -5 -5 -5 -4 -4 --------- Run | Scr Mat Mat Mat Fac Fac DSF Gar Fac Upp Upp War Pro Fac Machines Accessed 16 | . 3 2 1 5 1 . . 1 . . 2 . 1 Terminals 9 | . 2 2 . 3 1 . . 1 . . . . . Fabricators 1 | . . . . 1 . . . . . . . . . Repair Stations . | . . . . . . . . . . . . . . Recycling Units 1 | . 1 . . . . . . . . . . . . Scanalyzers . | . . . . . . . . . . . . . . Garrison Access 3 | . . . 1 1 . . . . . . . . 1 Total Hacks 41 | . 12 4 2 11 3 . . 2 . . 6 . 1 Successful 21 | . 6 3 . 4 1 . . 1 . . 6 . . Failed 20 | . 6 1 2 7 2 . . 1 . . . . 1 Catastrophic 6 | . . . 2 4 . . . . . . . . . Database Lockouts . | . . . . . . . . . . . . . . Manual 19 | . 8 1 . 8 . . . 2 . . . . . Terminals 26 | . 11 4 . 6 3 . . 2 . . . . . Fabricators 4 | . . . . 4 . . . . . . . . . Repair Stations . | . . . . . . . . . . . . . . Recycling Units 1 | . 1 . . . . . . . . . . . . Scanalyzers . | . . . . . . . . . . . . . . Garrison Access 4 | . . . 2 1 . . . . . . . . 1 Terminal Hacks 11 | . 2 2 . . 1 . . . . . 6 . . Prototype ID Bank 6 | . 1 . . . . . . . . . 5 . . Open Door 1 | . . . . . . . . . . . 1 . . Open DSF 1 | . . . . . 1 . . . . . . . . Branch Access Points 1 | . 1 . . . . . . . . . . . . Unreport Threat 2 | . . 2 . . . . . . . . . . . Fabricator Hacks 1 | . . . . 1 . . . . . . . . . Build 1 | . . . . 1 . . . . . . . . . Repair Station Hacks . | . . . . . . . . . . . . . . Recycling Unit Hacks 1 | . 1 . . . . . . . . . . . . Report Inventory 1 | . 1 . . . . . . . . . . . . Scanalyzer . | . . . . . . . . . . . . . . Garrison Access Hacks 1 | . . . . 1 . . . . . . . . . Seal Access 1 | . . . . 1 . . . . . . . . . Unauthorized Hacks 7 | . 3 1 . 2 . . . 1 . . . . . Terminals 7 | . 3 1 . 2 . . . 1 . . . . . Botnet 6 | . 2 1 . 2 . . . 1 . . . . . Operators 1 | . 1 . . . . . . . . . . . . Fabricators . | . . . . . . . . . . . . . . Repair Stations . | . . . . . . . . . . . . . . Recycling Units . | . . . . . . . . . . . . . . Scanalyzers . | . . . . . . . . . . . . . . Garrison Access . | . . . . . . . . . . . . . . Data Cores Recovered 1 | . . 1 . . . . . . . . . . . Used 1 | . . 1 . . . . . . . . . . . Hacking Detections 12 | . 2 2 1 4 1 . . 1 . . . . 1 Full Trace Events 1 | . . . 1 . . . . . . . . . . Feedback Events . | . . . . . . . . . . . . . . Feedback Blocked . | . . . . . . . . . . . . . . Robot Schematics Acquired . | . . . . . . . . . . . . . . Robots Built . | . . . . . . . . . . . . . . Authchips . | . . . . . . . . . . . . . . Time . | . . . . . . . . . . . . . . Total Robot Build Rating . | . . . . . . . . . . . . . . Part Schematics Acquired . | . . . . . . . . . . . . . . Parts Built 1 | . . . . 1 . . . . . . . . . Authchips . | . . . . . . . . . . . . . . Time 169 | . . . . 169 . . . . . . . . . Total Part Build Rating 6 | . . . . 6 . . . . . . . . . Parts Repaired . | . . . . . . . . . . . . . . Time . | . . . . . . . . . . . . . . Parts Recycled . | . . . . . . . . . . . . . . Recycled Matter . | . . . . . . . . . . . . . . Retrieved Matter . | . . . . . . . . . . . . . . Retrieved Components . | . . . . . . . . . . . . . . Parts Scanalyzed . | . . . . . . . . . . . . . . Part Schematics Acquired . | . . . . . . . . . . . . . . Parts Damaged . | . . . . . . . . . . . . . . Bothacking | -11 -10 -9 -8 -7 -6 -6 -6 -5 -5 -5 -5 -4 -4 ------------ Run | Scr Mat Mat Mat Fac Fac DSF Gar Fac Upp Upp War Pro Fac Used RIF Installer . | . . . . . . . . . . . . . . Robots Hacked . | . . . . . . . . . . . . . . Non-combat . | . . . . . . . . . . . . . . Combat . | . . . . . . . . . . . . . . Robot Hacks Applied . | . . . . . . . . . . . . . . Relay Couplers Released 2 | . . . 2 . . . . . . . . . . Machine Destruction 2 | . . . 2 . . . . . . . . . . Fabnet Peak Effective % . | . . . . . . . . . . . . . . Robots Rewired . | . . . . . . . . . . . . . . Allies Hacked . | . . . . . . . . . . . . . . Hacks Repelled . | . . . . . . . . . . . . . . Allies | -11 -10 -9 -8 -7 -6 -6 -6 -5 -5 -5 -5 -4 -4 -------- Run | Scr Mat Mat Mat Fac Fac DSF Gar Fac Upp Upp War Pro Fac Total Allies 3 | . . . . . . . . 3 . . . . . Largest Group 3 | . . . . . . . . 3 . . . . . Highest-Rated Group 93 | . . . . . . . . 93 . . . . . Highest-Rated Ally 31 | . . . . . . . . 31 . . . . . Total Orders . | . . . . . . . . . . . . . . Ally Attacks 14 | . . . . . . . . 14 . . . . . Total Damage 140 | . . . . . . . . 140 . . . . . Kills . | . . . . . . . . . . . . . . Allies Corrupted . | . . . . . . . . . . . . . . Allies Melted . | . . . . . . . . . . . . . . Intel | -11 -10 -9 -8 -7 -6 -6 -6 -5 -5 -5 -5 -4 -4 ------- Run | Scr Mat Mat Mat Fac Fac DSF Gar Fac Upp Upp War Pro Fac Robot Analysis Total . | . . . . . . . . . . . . . . Derelict Logs Recovered 2 | . . . . . . . . . . 1 . 1 . Drone Launches . | . . . . . . . . . . . . . . Drone Recoveries . | . . . . . . . . . . . . . . Exploration | -11 -10 -9 -8 -7 -6 -6 -6 -5 -5 -5 -5 -4 -4 ------------- Run | Scr Mat Mat Mat Fac Fac DSF Gar Fac Upp Upp War Pro Fac Turns Passed 8389 | 120 668 1355 1323 2409 15 56 180 523 176 172 518 395 479 Spaces Moved 7176 | 65 502 750 619 1936 36 110 189 796 233 252 686 342 660 Core 3 | 1 . . 2 . . . . . . . . . . Treads 1239 | 15 36 577 601 10 . . . . . . . . . Legs 1290 | . . . . 1290 . . . . . . . . . Wheels 796 | 49 466 173 16 . . . . . . . . . 92 Hover 1973 | . . . . . . . . 476 233 252 686 241 85 Flight 1875 | . . . . 636 36 110 189 320 . . . 101 483 Fastest Speed 23 | 50 80 80 95 27 27 27 23 27 66 66 48 48 30 Average Speed 88 | 113 99 144 160 96 27 27 27 52 66 66 60 76 50 Slowest Speed 500 | 160 160 160 500 196 27 29 115 106 66 66 106 212 150 Overloaded Moves . | . . . . . . . . . . . . . . Propulsion Burnouts . | . . . . . . . . . . . . . . Robots Hopped 7 | . . . . 2 . 3 . . . . . . 2 Cave-ins Triggered . | . . . . . . . . . . . . . . Exploration Rate (%) 47 | 4 91 82 33 40 2 91 56 10 46 47 87 53 16 Regions Visited 13 Branch Regions 4 Pre-discovered Areas 1 | . . . . . . . . . . . . 1 . Known Exits Taken 5 | . . . . 1 1 . . 1 1 1 . . . Unknown Exits Taken 6 | 1 1 1 1 . . . . . . . 1 1 . Scrap Searched 2 | . . . . . . . . . 1 1 . . . Spaces Dug 28 | . . . 6 12 1 . . . . 6 1 . 2 Terrain Destroyed 191 | . . 9 31 48 1 . 44 1 . 17 1 21 18 Melee 16 | . . . . 12 1 . . . . . 1 . 2 Projectile 6 | . . . . . . . . 1 . . . 2 3 AOE 169 | . . 9 31 36 . . 44 . . 17 . 19 13 Terrain Rammed . | . . . . . . . . . . . . . . Walls Destroyed . | . . . . . . . . . . . . . . Machines Disabled . | . . . . . . . . . . . . . . Actions | -11 -10 -9 -8 -7 -6 -6 -6 -5 -5 -5 -5 -4 -4 --------- Run | Scr Mat Mat Mat Fac Fac DSF Gar Fac Upp Upp War Pro Fac Total 8498 | 87 586 920 794 2287 39 132 292 876 254 254 782 441 754 Wait 355 | . 10 46 30 85 . 3 47 16 15 . 53 38 12 Move 7148 | 64 501 749 618 1931 35 103 187 795 232 251 685 341 656 Hop 7 | . . . . 2 . 3 . . . . . . 2 Pick Up 116 | 6 13 19 14 38 1 . . 10 . . 6 1 8 Fast Attach 79 | 7 1 7 13 5 . 2 2 7 3 . 15 . 17 Attach 85 | . . 10 15 27 1 2 5 7 1 . 3 7 7 Detach 52 | . . 3 4 16 . 1 . 8 2 . 10 2 6 Swap 50 | . 10 8 5 19 . . 1 1 . . 1 5 . Drop 108 | . 8 25 7 44 1 2 . 4 1 . 5 . 11 Fire 256 | 10 43 53 70 2 . . 10 28 . 3 2 28 7 Melee 171 | . . . 14 118 1 . 8 . . . 2 . 28 Ram . | . . . . . . . . . . . . . . Kick . | . . . . . . . . . . . . . . Crush 4 | . . . 4 . . . . . . . . . . Escape Stasis 66 | . . . . . . 16 32 . . . . 18 . Rewire 1 | . . . . . . . . . . . . 1 . Trap . | . . . . . . . . . . . . . . Miscellaneous . | . . . . . . . . . . . . . . Route ------- -11/Scrapyard -10/Materials (discovered 5 exits: *Mat x3 / *Min x2) -9/Materials (discovered 4 exits: *Mat / [*Min x2] / [*Sto]) -8/Materials -7/Factory -6/Factory -6/DSF -6/Garrison (discovered 2 exits: *Fac x2) -5/Factory (discovered 2 exits: *Upp / [*Ext]) -5/Upper Caves -5/Upper Caves -5/Warlord -4/Proximity Caves -4/Factory History --------- Turn | Location | Event 17 | -11/Scrapyard | Discovered new exit (range 14) 121 | -11/Scrapyard | Entered Materials 302 | -10/Materials | Build established: Mutant 432 | -10/Materials | Discovered new exit (range 3) 678 | -10/Materials | Discovered new exit (range 4) 702 | -10/Materials | Discovered new exit (range 7) 717 | -10/Materials | Identified exit to Mines 762 | -10/Materials | Discovered new exit (range 16) 789 | -10/Materials | Entered another Materials area 789 | -9/Materials | Evolved 2 slots: Propulsion x1, Utility x1 901 | -9/Materials | Discovered new exit (range 10) 999 | -9/Materials | Destroyed 8 combat bots 1050 | -9/Materials | Met 8R-AWN 1123 | -9/Materials | Discovered new exit (range 11) 1454 | -9/Materials | Discovered new exit (range 15) 1698 | -9/Materials | Discovered new exit (range 6) 2144 | -9/Materials | Entered another Materials area 2144 | -8/Materials | Evolved 2 slots: Propulsion x1, Utility x1 2602 | -8/Materials | Discovered new exit (range 5) 2619 | -8/Materials | Garrison activated, responded to threat 2689 | -8/Materials | Destroyed 7 combat bots 2699 | -8/Materials | Lost 7 parts (2n2u3w) 2783 | -8/Materials | Lost 6 parts (3n2u1w) 2950 | -8/Materials | Core integrity fell below 50% 2970 | -8/Materials | Core integrity fell below 20% 2974 | -8/Materials | System corruption reached 10% 2993 | -8/Materials | Lost 7 parts (1p4n1u1w) 3467 | -8/Materials | Entered Factory 3467 | -7/Factory | Evolved 2 slots: Utility x1, Weapon x1 4383 | -7/Factory | Build established: Scavenger-Mutant 5130 | -7/Factory | System corruption reached 10% 5182 | -7/Factory | Build established: Mutant 5189 | -7/Factory | Lost 5 parts (1p1n2u1w) 5428 | -7/Factory | Fabricated Exp. Cesium-ion Thruster (x1) 5868 | -7/Factory | Discovered new exit (range 16) 5876 | -7/Factory | Identified exit to Factory 5876 | -7/Factory | Entered another Factory area 5876 | -6/Factory | Evolved 2 slots: Utility x2 5891 | -6/Factory | Identified exit to DSF 5891 | -6/Factory | Entered DSF 5910 | -6/DSF | Additional patrols routed to DSF 5942 | -6/DSF | Discovered new exit (range 14) 5947 | -6/DSF | Identified exit to Garrison 5947 | -6/DSF | Entered Garrison 5971 | -6/Garrison | Triggered checkpoint 5976 | -6/Garrison | Lost 5 parts (1p2n2u) 6057 | -6/Garrison | Discovered new exit (range 13) 6060 | -6/Garrison | Identified exit to Factory 6061 | -6/Garrison | Attempted to access garrison exit controls, blocked by remote lockdown 6107 | -6/Garrison | Core integrity fell below 50% 6123 | -6/Garrison | Discovered exit to Factory (range 14) 6127 | -6/Garrison | Entered Factory 6127 | -5/Factory | Evolved 2 slots: Utility x2 6129 | -5/Factory | Destroyed 7 combat bots 6136 | -5/Factory | Found Launcher Loader 6142 | -5/Factory | Lost 4 parts (3n1w) 6193 | -5/Factory | Discovered new exit (range 11) 6352 | -5/Factory | Allied Derelicts emerged from ambush trap array 6464 | -5/Factory | Discovered new exit (range 10) 6650 | -5/Factory | Identified exit to Upper Caves 6650 | -5/Factory | Entered Upper Caves 6820 | -5/Upper Caves | Discovered new exit (range 9) 6825 | -5/Upper Caves | Identified exit to Upper Caves 6826 | -5/Upper Caves | Entered another Upper Caves area 6839 | -5/Upper Caves | Encountered a Warlord checkpoint 6984 | -5/Upper Caves | Attracted the attention of an 0b10 outpost 6990 | -5/Upper Caves | Discovered new exit (range 6) 6996 | -5/Upper Caves | Identified exit to Warlord 6998 | -5/Upper Caves | Entered Warlord 7054 | -5/Warlord | Found Prototype Device 7054 | -5/Warlord | Identified Wardrone Bay 7107 | -5/Warlord | Visited the Vortex Lab 7111 | -5/Warlord | Found Prototype Energy Gun 7111 | -5/Warlord | Identified Vortex Rifle 7116 | -5/Warlord | Found Vortex Rifle 7122 | -5/Warlord | Warlord's base attacked by MAIN.C 7208 | -5/Warlord | Met Warlord 7235 | -5/Warlord | Found Prototype Device 7235 | -5/Warlord | Identified Exp. Phase Shifter 7241 | -5/Warlord | Found Prototype Reactor 7441 | -5/Warlord | Spotted B-86 Titan 7451 | -5/Warlord | Spotted Striker 7451 | -5/Warlord | Spotted B-75 Beast 7471 | -5/Warlord | Spotted Striker 7472 | -5/Warlord | Warlord forces counterattacked 7508 | -5/Warlord | Discovered new exit (range 14) 7516 | -5/Warlord | Entered Proximity Caves 7567 | -4/Proximity Caves | Build established: Derelict-Mutant 7576 | -4/Proximity Caves | Attracted the attention of an 0b10 outpost 7606 | -4/Proximity Caves | Learned location of Armory (-3) 7620 | -4/Proximity Caves | Spotted B-86 Titan 7698 | -4/Proximity Caves | Lost 4 parts (1n2u1w) 7710 | -4/Proximity Caves | Destroyed B-86 Titan 7739 | -4/Proximity Caves | Lost 5 parts (1p2n1u1w) 7801 | -4/Proximity Caves | Core integrity fell below 50% 7897 | -4/Proximity Caves | Discovered new exit (range 14) 7911 | -4/Proximity Caves | Entered Factory 7911 | -4/Factory | Evolved 2 slots: Power x1, Propulsion x1 7981 | -4/Factory | Build established: Mutant 8242 | -4/Factory | Core integrity fell below 50% 8258 | -4/Factory | Destroyed 9 combat bots 8332 | -4/Factory | Core integrity fell below 20% 8390 | -4/Factory | Destroyed by G-67 Veteran with Field Laser Last Messages --------------- 08336_ Wall collapses. 08336_ Penetrated by Slug. 08336_ Lrg. Storage Unit destroyed. 08336_ Slug penetrates H-77 Assassin. 08337_ Acquired 5 matter. 08337_ Penetrated by Slug. 08337_ Slug penetrates Wall. 08338_ R-10 Processor collects Terrain Scan Processor. 08338_ K-01 Serf destroyed. 08339_ Penetrated by Slug. 08339_ Slug penetrates Wall. 08345_ Penetrated by Slug. 08345_ Lgt. Nuclear Core destroyed. 08348_ VTOL Module destroyed. 08348_ Penetrated by Slug. 08349_ Slug penetrates Wall. 08358_ Acquired Imp. Light Armor Plating. 08367_ Slug penetrates Wall. 08370_ Power Sword destroyed. 08370_ Penetrated by Slug. Map ----- +----------------------------------------------------+ | ??????????????????????????# #??????????????? | | ??????????????????????????# #??????????????? | | ??????????????????????????# """ #??????????????? | | ??????????????????????????# """ #??????????????? | | ??????????????????????????# """ #??????????????? | | ??????????????????????????# #??????????????? | | ??????????????????????????# """ ! #??????????????? | | ??????????????????????????# """ #??????????????? | | ??????????????????????????# """ #??????????????? | | ??????????????????????????# #??????????????? | | ??????????????????????????#!! #??????????????? | | ??????????????????????????#!!! #??????????????? | | ??????????????????????????#!! *#??????????????? | | ??????????????????????????# #????#?????????? | | ???????????????????###+#### #?? ##????????? | | ???????????????????# #######+## #????????? | | ?????????? ###### ##???????? | | ???????????? T ??? | | ???????????????????# ### ????? | | ???????????????????# ########## #????????? | | ?????????????#########/#########???######????????? | | ?????????????# g hg #????????????????? | | ?????????????# """ """h""" """ #????????????????? | | ?????????????# """ """h""" """ #????????????????? | | ?????????????# """g""" """ """ #????????????????? | | ?????????????# g @ #????????????????? | | ?????????????# ! ! #????????????????? | | ?????????????# #????????????????? | | ?????????????# #????????????????? | | ?????????????####################????????????????? | | | | | | | | | | | | | | | | | | | | | | | | | | | | | | | | | | | | | | | | | +----------------------------------------------------+ Best States ------------- Heat Dissipation 71 Coolant Potential 80 Energy Generation 19 Energy Capacity 315 Matter Stores 800 Matter Capacity 800 Sight Range 16 Robot Scan Range 15 Terrain Scan Range 16 Terrain Scan Density 10 Armor Coverage 450 Resistance: TH 25 Weapon Cycling 20 Evasion (%) 64 Targeting Accuracy 11 Melee Accuracy 27 Core Analysis 6 Recoil Reduction 4 Offensive Hacking 10 Defensive Hacking 20 Item Schematics ----------------- None Robot Schematics ------------------ None Fabricated ------------ Exp. Cesium-ion Thruster | x1 | -7/Factory | Preloaded Alien Tech Used ----------------- None Achievements -------------- None Challenges ------------ None Game ------ Seed CargoTitaniumAxe Manual? 0 Play Time 02:08:46 Cumulative 205.3 hours Start 2022.04.14 @ 14:32:15 End 2022.04.14 @ 16:43:51 Sessions 1 Manual Loads 0 Difficulty Rogue Special Mode None Game No. 77 Rogue 77 Adventurer 0 Explorer 0 Win Type - Total 2 Types 1/0/1/0/0/0/0/0/0 Lore% 60 Gallery% 71 Achievement% 54 Wizard Run 0 Options --------- ASCII 1 Keyboard 1 Movement Numpad Keybinds 0 Fullscreen 1 Font 36/Smallcaps Map View 76x50 Tactical HUD 1 Map Filters NONE Filters NONE Steam 1 RUN: b52214e1-f85b-4196-ad0d-be5d9e9a9a4b